fUSD/lending_fUSD_20240404
["ID","MTS","AMOUNT","RATE_DAILY","PERIOD"]
[321437563,1712190673763,-500.0,0.00054794,30]
[321437564,1712190673772,-500.0,0.00054794,120]
[321437565,1712190673781,-500.0,0.00054794,120]
[321437566,1712190673790,-500.0,0.00054794,120]
[321437567,1712190673799,-521.85467095,0.00054794,120]
[321437568,1712190673809,-500.0,0.00054794,120]
[321437569,1712190673818,-500.0,0.00054794,120]
[321437570,1712190673826,-500.0,0.00054794,120]
[321437571,1712190673836,-523.30010332,0.00054794,120]
[321437572,1712190673847,-500.0,0.00054794,120]
[321437573,1712190673856,-2796.11,0.00054794,120]
[321437574,1712190673865,-500.0,0.00054794,120]
[321437575,1712190673875,-500.0,0.00054794,120]
[321437576,1712190673884,-500.0,0.00054794,120]
[321437577,1712190673893,-703.57,0.00054794,120]
[321437578,1712190673903,-1215.43,0.00054794,120]
[321437579,1712190673912,-500.0,0.00054794,120]
[321437580,1712190673920,-500.0,0.00054794,120]
[321437581,1712190673930,-500.0,0.00054794,120]
[321437582,1712190673938,-500.0,0.00054794,120]
[321437583,1712190673948,-510.79329484,0.00054794,120]
[321437584,1712190673957,-1411.34,0.00054794,120]
[321437585,1712190673966,-500.0,0.00054794,120]
[321437586,1712190673975,-500.0,0.00054794,120]
[321437587,1712190673984,-513.47934847,0.00054794,120]
[321437588,1712190673993,-865.98,0.00054794,120]
[321437589,1712190674002,-1132.35,0.00054794,120]
[321437590,1712190674011,-500.0,0.00054794,120]
[321437591,1712190674020,-593.63,0.00054794,120]
[321437592,1712190674029,-504.46862411,0.00054794,120]
[321437593,1712190674038,-500.0,0.00054794,120]
[321437594,1712190674048,-500.0,0.00054794,120]
[321437595,1712190674057,-500.0,0.00054794,120]
[321437596,1712190674068,-1282.32,0.00054794,120]
[321437597,1712190674078,-500.0,0.00054794,120]
[321437598,1712190674087,-374.07299987,0.00054794,120]
[321437599,1712190674097,-500.0,0.00054794,120]
[321437600,1712190674106,-500.0,0.00054794,120]
[321437601,1712190674115,-391.0797547,0.00054794,120]
[321437602,1712190674124,-500.0,0.00054794,120]
[321437603,1712190674133,-1154.7,0.00054794,120]
[321437604,1712190674142,-500.0,0.00054794,120]
[321437605,1712190674153,-1054.98,0.00054794,120]
[321437606,1712190674162,-507.78468229,0.00054794,120]
[321437607,1712190674171,-636.66,0.00054794,120]
[321437608,1712190674180,-1332.56,0.00054794,120]
[321437609,1712190674190,-500.0,0.00054794,120]
[321437610,1712190674199,-500.0,0.00054794,120]
[321437611,1712190674207,-910.81,0.00054794,80]
[321437612,1712190674216,-500.0,0.00054794,120]
[321437613,1712190674226,-1091.91,0.00054794,120]
[321437614,1712190674235,-500.0,0.00054794,120]
[321437615,1712190674245,-500.0,0.00054794,120]
[321437616,1712190674254,-1121.37,0.00054794,120]
[321437617,1712190674264,-500.0,0.00054794,120]
[321437618,1712190674274,-375.6006414,0.00054794,120]
[321437619,1712190674283,-510.32168254,0.00054794,120]
[321437620,1712190674292,-1283.08,0.00054794,120]
[321437621,1712190674302,-500.0,0.00054794,120]
[321437622,1712190674311,-500.0,0.00054794,120]
[321437623,1712190674320,-506.74011874,0.00054794,120]
[321437624,1712190674329,-500.0,0.00054794,120]
[321437625,1712190674338,-699.93,0.00054794,120]
[321437626,1712190674348,-500.0,0.00054794,120]
[321437627,1712190674357,-1032.42,0.00054794,120]
[321437628,1712190674366,-500.0,0.00054794,120]
[321437629,1712190674374,-500.0,0.00054794,120]
[321437630,1712190674383,-500.0,0.00054794,120]
[321437631,1712190674392,-1816.42,0.00054794,120]
[321437632,1712190674401,-1753.93,0.00054794,120]
[321437633,1712190674410,-500.0,0.00054794,120]
[321437634,1712190674418,-500.0,0.00054794,120]
[321437635,1712190674427,-500.0,0.00054794,120]
[321437636,1712190674436,-2410.37,0.00054794,120]
[321437637,1712190674446,-1401.23,0.00054794,120]
[321437638,1712190674455,-603.08,0.00054794,120]
[321437639,1712190674464,-1098.35,0.00054794,120]
[321437640,1712190674529,-500.0,0.00054794,120]
[321437641,1712190674539,-506.75452413,0.00054794,120]
[321437642,1712190674548,-500.0,0.00054794,120]
[321437643,1712190674557,-500.0,0.00054794,120]
[321437644,1712190674567,-500.0,0.00054794,120]
[321437645,1712190674576,-954.31,0.00054794,120]
[321437646,1712190674587,-500.0,0.00054794,120]
[321437647,1712190674597,-500.0,0.00054794,120]
[321437648,1712190674606,-500.0,0.00054794,120]
[321437649,1712190674616,-1622.05,0.00054794,120]
[321437650,1712190674625,-1774.24,0.00054794,120]
[321437651,1712190674635,-500.0,0.00054794,120]
[321437652,1712190674644,-500.0,0.00054794,120]
[321437653,1712190674654,-500.0,0.00054794,120]
[321437654,1712190674663,-500.0,0.00054794,120]
[321437655,1712190674673,-1556.91,0.00054794,120]
[321437656,1712190674682,-909.87,0.00054794,120]
[321437657,1712190674692,-500.0,0.00054794,120]
[321437658,1712190674701,-502.21007779,0.00054794,120]
[321437659,1712190674710,-500.0,0.00054794,120]
[321437660,1712190674719,-500.0,0.00054794,120]
[321437661,1712190674729,-500.0,0.00054794,120]
[321437662,1712190674738,-500.0,0.00054794,120]
[321437663,1712190674748,-500.0,0.00054794,120]
[321437664,1712190674758,-600.06,0.00054794,120]
[321437665,1712190674768,-500.0,0.00054794,120]
[321437666,1712190674778,-676.42,0.00054794,120]
[321437667,1712190674788,-500.0,0.00054794,60]
[321437668,1712190674798,-2958.64,0.00054794,120]
[321437669,1712190674807,-500.0,0.00054794,120]
[321437670,1712190674816,-715.45,0.00054794,120]
[321437671,1712190674826,-500.0,0.00054794,120]
[321437672,1712190674835,-897.57,0.00054794,120]
[321437673,1712190674844,-508.14750368,0.00054794,120]
[321437674,1712190674854,-500.0,0.00054794,120]
[321437675,1712190674863,-500.0,0.00054794,120]
[321437676,1712190674872,-500.0,0.00054794,120]
[321437677,1712190674881,-500.0,0.00054794,120]
[321437678,1712190674891,-500.0,0.00054794,120]
[321437679,1712190674901,-1288.54,0.00054794,120]
[321437680,1712190674910,-737.72,0.00054794,120]
[321437681,1712190674920,-786.57,0.00054794,120]
[321437682,1712190674929,-505.87066934,0.00054794,120]
[321437683,1712190674940,-500.0,0.00054794,120]
[321437684,1712190674949,-500.0,0.00054794,120]
[321437685,1712190674959,-938.87,0.00054794,120]
[321437686,1712190674968,-500.0,0.00054794,120]
[321437687,1712190674978,-515.67749522,0.00054794,120]
[321437688,1712190674987,-504.77087337,0.00054794,120]
[321437689,1712190674997,-500.0,0.00054794,120]
[321437690,1712190675006,-500.0,0.00054794,120]
[321437691,1712190675016,-531.92663094,0.00054794,120]
[321437692,1712190675025,-500.0,0.00054794,120]
[321437693,1712190675035,-500.0,0.00054794,120]
[321437694,1712190675044,-500.0,0.00054794,120]
[321437695,1712190675054,-500.0,0.00054794,120]
[321437696,1712190675062,-500.0,0.00054794,120]
[321437697,1712190675072,-500.0,0.00054794,120]
[321437698,1712190675083,-500.0,0.00054794,120]
[321437699,1712190675093,-500.0,0.00054794,2]
[321437700,1712190675102,-500.0,0.00054794,120]
[321437701,1712190675111,-500.0,0.00054794,120]
[321437702,1712190675120,-1930.97,0.00054794,120]
[321437703,1712190675130,-500.0,0.00054794,120]
[321437704,1712190675139,-500.0,0.00054794,120]
[321437705,1712190675148,-500.0,0.00054794,120]
[321437706,1712190675157,-500.0,0.00054794,120]
[321437707,1712190675167,-500.0,0.00054794,120]
[321437708,1712190675176,-500.0,0.00054794,120]
[321437709,1712190675185,-500.0,0.00054794,120]
[321437710,1712190675195,-521.39933804,0.00054794,120]
[321437711,1712190675204,-1180.17,0.00054794,30]
[321437712,1712190675214,-700.82,0.00054794,120]
[321437713,1712190675223,-515.51637738,0.00054794,120]
[321437714,1712190675233,-500.0,0.00054794,120]
[321437715,1712190675243,-557.7010403,0.00054794,120]
[321437716,1712190675252,-507.00974859,0.00054794,120]
[321437717,1712190675261,-1176.41,0.00054794,120]
[321437718,1712190675271,-500.0,0.00054794,120]
[321437719,1712190675280,-500.0,0.00054794,120]
[321437720,1712190675289,-500.0,0.00054794,120]
[321437721,1712190675298,-500.0,0.00054794,120]
[321437722,1712190675307,-1120.92,0.00054794,120]
[321437723,1712190675316,-500.0,0.00054794,120]
[321437724,1712190675325,-500.0,0.00054794,120]
[321437725,1712190675335,-500.0,0.00054794,120]
[321437726,1712190675344,-500.0,0.00054794,120]
[321437727,1712190675355,-529.49,0.00054794,120]
[321437728,1712190675364,-500.0,0.00054794,120]
[321437729,1712190675374,-1238.44,0.00054794,120]
[321437730,1712190675383,-954.95,0.00054794,120]
[321437731,1712190675392,-500.0,0.00054794,120]
[321437732,1712190675402,-500.0,0.00054794,120]
[321437733,1712190675411,-1084.08,0.00054794,120]
[321437734,1712190675420,-500.0,0.00054794,120]
[321437735,1712190675429,-500.0,0.00054794,120]
[321437736,1712190675438,-500.0,0.00054794,120]
[321437737,1712190675447,-500.0,0.00054794,120]
[321437738,1712190675456,-1167.8,0.00054794,120]
[321437739,1712190675466,-527.7092863,0.00054794,120]
[321437740,1712190675475,-500.0,0.00054794,120]
[321437741,1712190675484,-505.36500898,0.00054794,120]
[321437742,1712190675493,-500.0,0.00054794,120]
[321437743,1712190675503,-500.0,0.00054794,120]
[321437744,1712190675512,-500.0,0.00054794,120]
[321437745,1712190675521,-500.0,0.00054794,120]
[321437746,1712190675530,-500.0,0.00054794,120]
[321437747,1712190675540,-505.29988277,0.00054794,120]
[321437748,1712190675549,-500.0,0.00054794,120]
[321437749,1712190675558,-500.0,0.00054794,120]
[321437750,1712190675568,-1310.95,0.00054794,120]
[321437751,1712190675577,-500.0,0.00054794,120]
[321437752,1712190675586,-500.0,0.00054794,120]
[321437753,1712190675596,-504.9977161,0.00054794,120]
[321437754,1712190675608,-500.0,0.00054794,120]
[321437755,1712190675617,-509.7830299,0.00054794,120]
[321437756,1712190675627,-500.0,0.00054794,120]
[321437757,1712190675636,-503.56489493,0.00054794,120]
[321437758,1712190675646,-500.0,0.00054794,120]
[321437759,1712190675655,-500.0,0.00054794,120]
[321437760,1712190675665,-517.56,0.00054794,120]
[321437761,1712190675674,-528.3,0.00054794,120]
[321437762,1712190675684,-503.17633588,0.00054794,120]
[321437763,1712190675692,-500.0,0.00054794,120]
[321437764,1712190675701,-506.14026944,0.00054794,120]
[321437765,1712190675711,-500.0,0.00054794,120]
[321437766,1712190675720,-882.75,0.00054794,120]
[321437767,1712190675729,-505.98905287,0.00054794,120]
[321437768,1712190675739,-500.0,0.00054794,2]
[321437769,1712190675748,-500.0,0.00054794,120]
[321437770,1712190675757,-500.0,0.00054794,2]
[321437771,1712190675767,-500.0,0.00054794,2]
[321437772,1712190675776,-500.0,0.00054794,120]
[321437773,1712190675785,-500.0,0.00054794,120]
[321437774,1712190675795,-500.0,0.00054794,2]
[321437775,1712190675804,-500.0,0.00054794,2]
[321437776,1712190675814,-500.0,0.00054794,2]
[321437777,1712190675823,-509.12687492,0.00054794,120]
[321437778,1712190675832,-500.0,0.00054794,2]
[321437779,1712190675842,-500.0,0.00054794,2]
[321437780,1712190675851,-500.0,0.00054794,2]
[321437781,1712190675861,-500.0,0.00054794,2]
[321437782,1712190675871,-503.38298461,0.00054794,2]
[321437783,1712190675880,-500.0,0.00054794,120]
[321437784,1712190675891,-500.0,0.00054794,120]
[321437785,1712190675906,-500.0,0.00054794,120]
[321437786,1712190675915,-500.0,0.00054794,120]
[321437787,1712190675925,-500.0,0.00054794,120]
[321437788,1712190675934,-516.69316658,0.00054794,120]
[321437789,1712190675943,-500.0,0.00054794,120]
[321437790,1712190675953,-514.10252397,0.00054794,120]
[321437791,1712190675962,-500.0,0.00054794,120]
[321437792,1712190675973,-1227.92,0.00054794,120]
[321437793,1712190675982,-1590.89,0.00054794,120]
[321437794,1712190675991,-500.0,0.00054794,120]
[321437795,1712190676000,-799.42,0.00054794,120]
[321437796,1712190676010,-500.0,0.00054794,120]
[321437797,1712190676019,-500.0,0.00054794,120]
[321437798,1712190676029,-500.0,0.00054794,120]
[321437799,1712190676039,-854.96,0.00054794,120]
[321437800,1712190676049,-500.0,0.00054794,120]
[321437801,1712190676058,-500.0,0.00054794,120]
[321437802,1712190676068,-843.85,0.00054794,120]
[321437803,1712190676080,-808.59,0.00054794,120]
[321437804,1712190676090,-998.02464732,0.00054794,30]
[321437805,1712190676101,-1166.52,0.00054794,120]
[321437806,1712190676110,-500.0,0.00054794,120]
[321437807,1712190676119,-500.0,0.00054794,120]
[321437808,1712190676128,-1000.0,0.00054794,120]
[321437809,1712190676137,-500.0,0.00054794,120]
[321437810,1712190676147,-784.86,0.00054794,120]
[321437811,1712190676158,-500.0,0.00054794,120]
[321437812,1712190676168,-500.0,0.00054794,120]
[321437813,1712190676177,-1141.08,0.00054794,120]
[321437814,1712190676186,-732.82,0.00054794,120]
[321437815,1712190676196,-500.0,0.00054794,120]
[321437816,1712190676205,-1322.44,0.00054794,120]
[321437817,1712190676215,-500.0,0.00054794,120]
[321437818,1712190676224,-500.0,0.00054794,120]
[321437819,1712190676233,-500.0,0.00054794,120]
[321437820,1712190676243,-811.09,0.00054794,120]
[321437821,1712190676252,-500.0,0.00054794,120]
[321437822,1712190676262,-1327.45,0.00054794,120]
[321437823,1712190676271,-1071.59,0.00054794,60]
[321437824,1712190676281,-1233.42,0.00054794,120]
[321437825,1712190676289,-512.61665546,0.00054794,120]
[321437826,1712190676299,-500.0,0.00054794,120]
[321437827,1712190676308,-500.0,0.00054794,120]
[321437828,1712190676317,-500.0,0.00054794,120]
[321437829,1712190676326,-500.0,0.00054794,120]
[321437830,1712190676335,-500.0,0.00054794,120]
[321437831,1712190676345,-500.0,0.00054794,120]
[321437832,1712190676354,-500.0,0.00054794,120]
[321437833,1712190676363,-811.27,0.00054794,120]
[321437834,1712190676372,-500.0,0.00054794,2]
[321437835,1712190676381,-500.0,0.00054794,120]
[321437836,1712190676390,-1449.74,0.00054794,120]
[321437837,1712190676400,-500.0,0.00054794,120]
[321437838,1712190676409,-500.0,0.00054794,120]
[321437839,1712190676418,-1079.11,0.00054794,120]
[321437840,1712190676427,-1740.04,0.00054794,120]
[321437841,1712190676436,-507.00045073,0.00054794,120]
[321437842,1712190676445,-500.0,0.00054794,120]
[321437843,1712190676455,-510.88083977,0.00054794,120]
[321437844,1712190676464,-1211.71,0.00054794,120]
[321437845,1712190676474,-500.0,0.00054794,120]
[321437846,1712190676483,-1659.53,0.00054794,120]
[321437847,1712190676493,-500.0,0.00054794,120]
[321437848,1712190676503,-500.0,0.00054794,120]
[321437849,1712190676512,-1000.0,0.00054794,120]
[321437850,1712190676521,-500.0,0.00054794,120]
[321437851,1712190676531,-500.0,0.00054794,120]
[321437852,1712190676541,-515.59669646,0.00054794,120]
[321437853,1712190676551,-634.12,0.00054794,120]
[321437854,1712190676560,-871.93,0.00054794,120]
[321437855,1712190676571,-500.0,0.00054794,120]
[321437856,1712190676580,-500.0,0.00054794,120]
[321437857,1712190676767,-500.0,0.00054794,120]
[321437858,1712190676778,-500.0,0.00054794,120]
[321437859,1712190676788,-555.42,0.00054794,120]
[321437860,1712190676797,-826.77,0.00054794,120]
[321437861,1712190676806,-500.0,0.00054794,120]
[321437862,1712190676815,-500.0,0.00054794,120]
[321437863,1712190676825,-500.0,0.00054794,120]
[321437864,1712190676834,-500.0,0.00054794,120]
[321437865,1712190676844,-831.64,0.00054794,120]
[321437866,1712190676856,-799.72,0.00054794,120]
[321437867,1712190676867,-500.0,0.00054794,120]
[321437868,1712190676878,-169.84024934,0.00054794,120]
[321437869,1712190676889,-1237.54,0.00054794,120]
[321437870,1712190676899,-500.0,0.00054794,120]
[321437871,1712190676909,-1350.79,0.00054794,120]
[321437872,1712190676920,-500.0,0.00054794,120]
[321437873,1712190676932,-654.81,0.00054794,120]
[321437874,1712190676942,-500.0,0.00054794,120]
[321437875,1712190676952,-500.0,0.00054794,120]
[321437876,1712190676962,-500.0,0.00054794,120]
[321437877,1712190676974,-500.0,0.00054794,120]
[321437878,1712190676983,-578.32,0.00054794,120]
[321437879,1712190676994,-578.32,0.00054794,120]
[321437880,1712190677004,-578.32,0.00054794,120]
[321437881,1712190677015,-578.32,0.00054794,120]
[321437882,1712190677025,-578.32,0.00054794,120]
[321437883,1712190677035,-578.32,0.00054794,120]
[321437884,1712190677047,-578.32,0.00054794,120]
[321437885,1712190677058,-578.32,0.00054794,120]
[321437886,1712190677068,-502.14004124,0.00054794,120]
[321437887,1712190677081,-578.32,0.00054794,120]
[321437888,1712190677091,-500.0,0.00054794,120]
[321437889,1712190677102,-578.32,0.00054794,120]
[321437890,1712190677111,-1606.3,0.00054794,120]
[321437891,1712190677120,-500.0,0.00054794,120]
[321437892,1712190677129,-578.32,0.00054794,120]
[321437893,1712190677138,-578.32,0.00054794,120]
[321437894,1712190677148,-578.32,0.00054794,120]
[321437895,1712190677157,-578.32,0.00054794,120]
[321437896,1712190677168,-500.0,0.00054794,120]
[321437897,1712190677177,-578.32,0.00054794,120]
[321437898,1712190677186,-500.0,0.00054794,120]
[321437899,1712190677195,-578.32,0.00054794,120]
[321437900,1712190677204,-578.32,0.00054794,120]
[321437901,1712190677214,-500.0,0.00054794,120]
[321437902,1712190677223,-500.0,0.00054794,120]
[321437903,1712190677233,-1128.79,0.00054794,120]
[321437904,1712190677242,-578.32,0.00054794,120]
[321437905,1712190677252,-500.0,0.00054794,120]
[321437906,1712190677262,-578.32,0.00054794,120]
[321437907,1712190677270,-578.32,0.00054794,120]
[321437908,1712190677281,-500.08896784,0.00054794,120]
[321437909,1712190677291,-578.32,0.00054794,120]
[321437910,1712190677300,-578.32,0.00054794,120]
[321437911,1712190677310,-578.32,0.00054794,120]
[321437912,1712190677319,-578.36906564,0.00054794,120]
[321437913,1712190677328,-500.0,0.00054794,120]
[321437914,1712190677338,-500.0,0.00054794,120]
[321437915,1712190677347,-514.14780467,0.00054794,120]
[321437916,1712190677361,-500.0,0.00054794,120]
[321437917,1712190677370,-500.0,0.00054794,120]
[321437918,1712190677379,-500.0,0.00054794,120]
[321437919,1712190677389,-500.0,0.00054794,120]
[321437920,1712190677398,-500.0,0.00054794,120]
[321437921,1712190677408,-536.77869083,0.00054794,120]
[321437922,1712190677418,-1643.52,0.00054794,120]
[321437923,1712190677427,-506.5027619,0.00054794,120]
[321437924,1712190677437,-500.0,0.00054794,120]
[321437925,1712190677446,-500.0,0.00054794,120]
[321437926,1712190677456,-500.0,0.00054794,120]
[321437927,1712190677465,-973.28,0.00054794,120]
[321437928,1712190677475,-500.0,0.00054794,120]
[321437929,1712190677484,-647.75,0.00054794,120]
[321437930,1712190677494,-543.17640315,0.00054794,120]
[321437931,1712190677503,-504.33148709,0.00054794,120]
[321437932,1712190677513,-1769.82,0.00054794,120]
[321437933,1712190677522,-500.0,0.00054794,120]
[321437934,1712190677533,-500.0,0.00054794,120]
[321437935,1712190677542,-1882.12,0.00054794,120]
[321437936,1712190677552,-500.0,0.00054794,120]
[321437937,1712190677561,-503.15429219,0.00054794,120]
[321437938,1712190677570,-500.0,0.00054794,120]
[321437939,1712190677579,-500.0,0.00054794,120]
[321437940,1712190677589,-722.84,0.00054794,120]
[321437941,1712190677598,-500.0,0.00054794,120]
[321437942,1712190677611,-1179.39,0.00054794,120]
[321437943,1712190677620,-536.04926296,0.00054794,120]
[321437944,1712190677628,-500.0,0.00054794,120]
[321437945,1712190677638,-1115.77,0.00054794,120]
[321437946,1712190677648,-936.33,0.00054794,120]
[321437947,1712190677658,-509.1692284,0.00054794,120]
[321437948,1712190677668,-506.77918107,0.00054794,120]
[321437949,1712190677677,-500.0,0.00054794,2]
[321437950,1712190677688,-500.0,0.00054794,120]
[321437951,1712190677697,-500.0,0.00054794,120]
[321437952,1712190677707,-727.44,0.00054794,120]
[321437953,1712190677716,-506.37662323,0.00054794,120]
[321437954,1712190677726,-1321.08,0.00054794,120]
[321437955,1712190677735,-1616.65,0.00054794,120]
[321437956,1712190677745,-595.85,0.00054794,120]
[321437957,1712190677754,-500.0,0.00054794,120]
[321437958,1712190677763,-505.99150663,0.00054794,120]
[321437959,1712190677772,-8315.82,0.00054794,30]
[321437960,1712190677782,-576.96,0.00054794,120]
[321437961,1712190677791,-507.70012087,0.00054794,120]
[321437962,1712190677801,-500.0,0.00054794,120]
[321437963,1712190677811,-500.0,0.00054794,120]
[321437964,1712190677821,-1052.18,0.00054794,120]
[321437965,1712190677831,-503.54126789,0.00054794,120]
[321437966,1712190677840,-1676.65,0.00054794,120]
[321437967,1712190677851,-500.000001,0.00054794,120]
[321437968,1712190677863,-506.15817152,0.00054794,120]
[321437969,1712190677873,-1337.92,0.00054794,120]
[321437970,1712190677884,-500.0,0.00054794,120]
[321437971,1712190677894,-500.0,0.00054794,120]
[321437972,1712190677904,-511.3265256,0.00054794,120]
[321437973,1712190677913,-504.60884603,0.00054794,120]
[321437974,1712190677924,-500.0,0.00054794,120]
[321437975,1712190677934,-500.0,0.00054794,120]
[321437976,1712190677944,-500.0,0.00054794,120]
[321437977,1712190677954,-1028.62,0.00054794,120]
[321437978,1712190677964,-964.97,0.00054794,120]
[321437979,1712190677976,-646.02,0.00054794,120]
[321437980,1712190677987,-2485.77,0.00054794,120]
[321437981,1712190677997,-2899.95,0.00054794,120]
[321437982,1712190678007,-500.0,0.00054794,120]
[321437983,1712190678017,-519.24943692,0.00054794,120]
[321437984,1712190678026,-636.55,0.00054794,120]
[321437985,1712190678036,-952.89,0.00054794,120]
[321437986,1712190678045,-582.69,0.00054794,120]
[321437987,1712190678054,-500.0,0.00054794,120]
[321437988,1712190678062,-791.38,0.00054794,120]
[321437989,1712190678071,-500.0,0.00054794,120]
[321437990,1712190678083,-973.42,0.00054794,120]
[321437991,1712190678092,-504.38099705,0.00054794,120]
[321437992,1712190678101,-504.86374113,0.00054794,120]
[321437993,1712190678114,-946.06237162,0.00054794,120]
[321437994,1712190678123,-500.0,0.00054794,120]
[321437995,1712190678133,-2701.37,0.00054794,120]
[321437996,1712190678142,-500.0,0.00054794,120]
[321437997,1712190678151,-19586.0,0.00054794,120]
[321437998,1712190678161,-508.60080957,0.00054794,120]
[321437999,1712190678171,-538.46,0.00054794,120]
[321438000,1712190678180,-500.0,0.00054794,120]
[321438001,1712190678189,-500.0,0.00054794,120]
[321438002,1712190678199,-513.26817017,0.00054794,120]
[321438003,1712190678208,-1398.8,0.00054794,120]
[321438004,1712190678217,-500.0,0.00054794,120]
[321438005,1712190678226,-500.0,0.00054794,120]
[321438006,1712190678235,-500.0,0.00054794,120]
[321438007,1712190678245,-500.0,0.00054794,120]
[321438008,1712190678254,-508.18607914,0.00054794,120]
[321438009,1712190678263,-1291.22,0.00054794,120]
[321438010,1712190678273,-920.41,0.00054794,120]
[321438011,1712190678282,-520.63918074,0.00054794,120]
[321438012,1712190678291,-3408.38,0.00054794,120]
[321438013,1712190678301,-4502.35,0.00054794,120]
[321438014,1712190678311,-500.0,0.00054794,120]
[321438015,1712190678320,-514.19292966,0.00054794,120]
[321438016,1712190678330,-506.62152908,0.00054794,120]
[321438017,1712190678339,-2094.53,0.00054794,120]
[321438018,1712190678349,-500.0,0.00054794,120]
[321438019,1712190678360,-500.0,0.00054794,120]
[321438020,1712190678369,-500.0,0.00054794,120]
[321438021,1712190678378,-500.0,0.00054794,120]
[321438022,1712190678387,-506.96908767,0.00054794,120]
[321438023,1712190678396,-4873.76,0.00054794,120]
[321438024,1712190678405,-500.0,0.00054794,120]
[321438025,1712190678414,-500.0,0.00054794,120]
[321438026,1712190678423,-583.09,0.00054794,120]
[321438027,1712190678433,-813.48,0.00054794,120]
[321438028,1712190678442,-1821.59,0.00054794,120]
[321438029,1712190678451,-500.0,0.00054794,120]
[321438030,1712190678460,-524.32,0.00054794,120]
[321438031,1712190678470,-3915.53,0.00054794,120]
[321438032,1712190678479,-506.27276331,0.00054794,120]
[321438033,1712190678489,-500.0,0.00054794,120]
[321438034,1712190678498,-3915.53,0.00054794,120]
[321438035,1712190678507,-500.0,0.00054794,120]
[321438036,1712190678516,-3915.53,0.00054794,120]
[321438037,1712190678525,-512.32222869,0.00054794,120]
[321438038,1712190678534,-3915.53,0.00054794,120]
[321438039,1712190678543,-500.0,0.00054794,120]
[321438040,1712190678552,-3915.53,0.00054794,120]
[321438041,1712190678562,-3915.53,0.00054794,120]
[321438042,1712190678571,-3915.53,0.00054794,120]
[321438043,1712190678580,-3915.53,0.00054794,120]
[321438044,1712190678589,-3915.53,0.00054794,120]
[321438045,1712190678599,-3915.53,0.00054794,120]
[321438046,1712190678610,-3915.53,0.00054794,120]
[321438047,1712190678619,-500.0,0.00054794,120]
[321438048,1712190678628,-500.0,0.00054794,120]
[321438049,1712190678637,-3915.53,0.00054794,120]
[321438050,1712190678646,-3915.53,0.00054794,120]
[321438051,1712190678655,-3915.53,0.00054794,120]
[321438052,1712190678665,-3915.53,0.00054794,120]
[321438053,1712190678674,-500.0,0.00054794,120]
[321438054,1712190678683,-500.0,0.00054794,120]
[321438055,1712190678692,-3915.53,0.00054794,120]
[321438056,1712190678701,-2363.53,0.00054794,120]
[321438057,1712190678710,-8995.7,0.00054794,120]
[321438058,1712190678719,-3915.53,0.00054794,120]
[321438059,1712190678728,-1581.23,0.00054794,120]
[321438060,1712190678737,-3915.53,0.00054794,120]
[321438061,1712190678746,-3915.53,0.00054794,120]
[321438062,1712190678755,-3915.53,0.00054794,120]